[Event "Titled Tuesday Blitz December 06 Early 2022"]
[White "Kashtanov, Ruslan"]
[Black "Harshavardhan G B"]
[WhiteFideId "4124871"]
[BlackFideId "25059009"]
[WhiteElo "2276"]
[BlackElo "2323"]
[Result "1-0"]
[Round "03"]
[TimeControl "180+1"]
[Date "2022.12.07"]
[WhiteClock "0:00:03"]
[BlackClock "0:00:01"]

1. d4 {[%clk 0:02:55]}  Nf6 {[%clk 0:02:57]} 2. c4 {[%clk 0:02:53]}  e6 {[%clk 0:02:55]} 3. g3 {[%clk 0:02:52]}  d5 {[%clk 0:02:53]} 4. Bg2 {[%clk 0:02:52]}  c6 {[%clk 0:02:52]} 5. Nd2 {[%clk 0:02:39]}  Bd6 {[%clk 0:02:48]} 6. Ngf3 {[%clk 0:02:38]}  Nbd7 {[%clk 0:02:48]} 7. O-O {[%clk 0:02:37]}  O-O {[%clk 0:02:47]} 8. Qc2 {[%clk 0:02:37]}  b6 {[%clk 0:02:44]} 9. e4 {[%clk 0:02:30]}  dxe4 {[%clk 0:02:43]} 10. Nxe4 {[%clk 0:02:31]}  Nxe4 {[%clk 0:02:41]} 11. Qxe4 {[%clk 0:02:32]}  Bb7 {[%clk 0:02:41]} 12. Rd1 {[%clk 0:01:37]}  Qc7 {[%clk 0:02:33]} 13. Qc2 {[%clk 0:01:11]}  h6 {[%clk 0:02:25]} 14. Be3 {[%clk 0:00:52]}  c5 {[%clk 0:02:20]} 15. d5 {[%clk 0:00:46]}  exd5 {[%clk 0:02:16]} 16. cxd5 {[%clk 0:00:47]}  Nf6 {[%clk 0:02:14]} 17. Nh4 {[%clk 0:00:47]}  Rfe8 {[%clk 0:02:09]} 18. Nf5 {[%clk 0:00:44]}  Be5 {[%clk 0:02:09]} 19. d6 {[%clk 0:00:42]}  Qd7 {[%clk 0:02:07]} 20. Bxb7 {[%clk 0:00:34]}  Qxb7 {[%clk 0:02:05]} 21. f4 {[%clk 0:00:28]}  Bd4 {[%clk 0:01:56]} 22. Bxd4 {[%clk 0:00:28]}  cxd4 {[%clk 0:01:56]} 23. Rxd4 {[%clk 0:00:29]}  Rac8 {[%clk 0:01:53]} 24. Qd3 {[%clk 0:00:27]}  Rcd8 {[%clk 0:01:50]} 25. Rd1 {[%clk 0:00:24]}  Qd7 {[%clk 0:01:30]} 26. h3 {[%clk 0:00:18]}  Qe6 {[%clk 0:01:27]} 27. g4 {[%clk 0:00:16]}  Qxa2 {[%clk 0:01:18]} 28. g5 {[%clk 0:00:14]}  hxg5 {[%clk 0:01:17]} 29. fxg5 {[%clk 0:00:15]}  Nh5 {[%clk 0:01:16]} 30. g6 {[%clk 0:00:14]}  Re6 {[%clk 0:00:47]} 31. Ne7+ {[%clk 0:00:14]}  Kf8 {[%clk 0:00:46]} 32. gxf7 {[%clk 0:00:14]}  Rh6 {[%clk 0:00:34]} 33. Rf1 {[%clk 0:00:12]}  Nf6 {[%clk 0:00:32]} 34. Ng6+ {[%clk 0:00:11]}  Kxf7 {[%clk 0:00:31]} 35. Ne5+ {[%clk 0:00:09]}  Kg8 {[%clk 0:00:29]} 36. d7 {[%clk 0:00:10]}  Qe6 {[%clk 0:00:20]} 37. Qc4 {[%clk 0:00:07]}  Qxc4 {[%clk 0:00:12]} 38. Rxc4 {[%clk 0:00:08]}  Nxd7 {[%clk 0:00:11]} 39. Rd4 {[%clk 0:00:07]}  Rxh3 {[%clk 0:00:06]} 40. Rxd7 {[%clk 0:00:05]}  Rxd7 {[%clk 0:00:06]} 41. Nxd7 {[%clk 0:00:06]}  Rb3 {[%clk 0:00:06]} 42. Rf2 {[%clk 0:00:06]}  a5 {[%clk 0:00:05]} 43. Ne5 {[%clk 0:00:03]}  a4 {[%clk 0:00:04]} 44. Nc4 {[%clk 0:00:03]}  b5 {[%clk 0:00:04]} 45. Na5 {[%clk 0:00:03]}  Rb4 {[%clk 0:00:01]} 46. Nc6 {[%clk 0:00:03]} 1-0


[Site "https://www.chess.com"]

[Event "Titled Tuesday Blitz December 06 Early 2022"]
[White "Kravtsiv, Martyn"]
[Black "Herman, Daniel"]
[WhiteFideId "14113147"]
[BlackFideId "30935008"]
[WhiteElo "2695"]
[BlackElo "1897"]
[Result "1-0"]
[Round "03"]
[TimeControl "180+1"]
[Date "2022.12.07"]
[WhiteClock "0:01:53"]
[BlackClock "0:01:00"]

1. e4 {[%clk 0:03:00]}  g6 {[%clk 0:03:00]} 2. d4 {[%clk 0:03:00]}  Bg7 {[%clk 0:03:01]} 3. Nc3 {[%clk 0:03:00]}  d6 {[%clk 0:03:01]} 4. f4 {[%clk 0:02:59]}  Nf6 {[%clk 0:02:58]} 5. Nf3 {[%clk 0:02:58]}  c5 {[%clk 0:02:57]} 6. dxc5 {[%clk 0:02:51]}  Qa5 {[%clk 0:02:54]} 7. Bd3 {[%clk 0:02:51]}  Qxc5 {[%clk 0:02:45]} 8. Qe2 {[%clk 0:02:51]}  O-O {[%clk 0:02:39]} 9. Be3 {[%clk 0:02:52]}  Qa5 {[%clk 0:02:38]} 10. O-O-O {[%clk 0:02:52]}  Nc6 {[%clk 0:02:33]} 11. Bc4 {[%clk 0:02:45]}  Bg4 {[%clk 0:02:23]} 12. h3 {[%clk 0:02:42]}  Bxf3 {[%clk 0:02:23]} 13. Qxf3 {[%clk 0:02:43]}  Rac8 {[%clk 0:02:22]} 14. Bb3 {[%clk 0:02:41]}  b5 {[%clk 0:02:19]} 15. Kb1 {[%clk 0:02:39]}  b4 {[%clk 0:02:18]} 16. Nd5 {[%clk 0:02:23]}  Nxd5 {[%clk 0:02:15]} 17. exd5 {[%clk 0:02:22]}  Nb8 {[%clk 0:02:11]} 18. h4 {[%clk 0:02:23]}  Nd7 {[%clk 0:02:03]} 19. h5 {[%clk 0:02:23]}  Nc5 {[%clk 0:01:58]} 20. hxg6 {[%clk 0:02:19]}  fxg6 {[%clk 0:01:55]} 21. Qh3 {[%clk 0:02:19]}  h6 {[%clk 0:01:45]} 22. f5 {[%clk 0:02:18]}  Nxb3 {[%clk 0:01:24]} 23. Bxh6 {[%clk 0:02:03]}  Bxb2 {[%clk 0:01:00]} 24. Bxf8 {[%clk 0:01:53]} 1-0


[Site "https://www.chess.com"]

[Event "Titled Tuesday Blitz December 06 Early 2022"]
[White "Krzywda, Andrzej"]
[Black "Toshali, V"]
[WhiteFideId "1114565"]
[BlackFideId "5072611"]
[WhiteElo "2149"]
[BlackElo "1973"]
[Result "1-0"]
[Round "03"]
[TimeControl "180+1"]
[Date "2022.12.07"]
[WhiteClock "0:02:22"]
[BlackClock "0:01:59"]

1. e4 {[%clk 0:03:00]}  c6 {[%clk 0:02:57]} 2. d4 {[%clk 0:03:00]}  d5 {[%clk 0:02:57]} 3. exd5 {[%clk 0:02:58]}  cxd5 {[%clk 0:02:57]} 4. Bd3 {[%clk 0:02:59]}  Nc6 {[%clk 0:02:56]} 5. c3 {[%clk 0:02:59]}  Nf6 {[%clk 0:02:55]} 6. Bf4 {[%clk 0:03:00]}  g6 {[%clk 0:02:42]} 7. Nf3 {[%clk 0:02:58]}  Bg7 {[%clk 0:02:41]} 8. O-O {[%clk 0:02:57]}  O-O {[%clk 0:02:40]} 9. Re1 {[%clk 0:02:52]}  Nh5 {[%clk 0:02:37]} 10. Bg5 {[%clk 0:02:47]}  h6 {[%clk 0:02:36]} 11. Be3 {[%clk 0:02:45]}  Nf6 {[%clk 0:02:35]} 12. Bf4 {[%clk 0:02:44]}  Bg4 {[%clk 0:02:30]} 13. h3 {[%clk 0:02:44]}  Be6 {[%clk 0:02:29]} 14. Nbd2 {[%clk 0:02:41]}  Bd7 {[%clk 0:02:26]} 15. Bh2 {[%clk 0:02:40]}  Qb6 {[%clk 0:02:19]} 16. Qb3 {[%clk 0:02:39]}  Rfe8 {[%clk 0:02:12]} 17. Ne5 {[%clk 0:02:37]}  Qxb3 {[%clk 0:01:59]} 18. axb3 {[%clk 0:02:34]}  Bf5 {[%clk 0:02:00]} 19. Bxf5 {[%clk 0:02:29]}  gxf5 {[%clk 0:02:01]} 20. Nxc6 {[%clk 0:02:27]}  bxc6 {[%clk 0:02:00]} 21. f3 {[%clk 0:02:27]}  Nd7 {[%clk 0:02:00]} 22. b4 {[%clk 0:02:27]}  Nb6 {[%clk 0:01:59]} 23. Ra6 {[%clk 0:02:22]} 1-0


[Site "https://www.chess.com"]

[Event "Titled Tuesday Blitz December 06 Early 2022"]
[White "Kuchava, Ana"]
[Black "Crevatin, Leo"]
[WhiteFideId "13605348"]
[BlackFideId "1726307"]
[WhiteElo "2001"]
[BlackElo "2190"]
[Result "0-1"]
[Round "03"]
[TimeControl "180+1"]
[Date "2022.12.07"]
[WhiteClock "0:00:01"]
[BlackClock "0:00:12"]

1. d4 {[%clk 0:03:00]}  Nf6 {[%clk 0:02:45]} 2. Nf3 {[%clk 0:02:58]}  d5 {[%clk 0:02:44]} 3. c4 {[%clk 0:02:55]}  e6 {[%clk 0:02:44]} 4. Nc3 {[%clk 0:02:53]}  Bb4 {[%clk 0:02:42]} 5. Qa4+ {[%clk 0:02:50]}  Nc6 {[%clk 0:02:41]} 6. e3 {[%clk 0:02:49]}  O-O {[%clk 0:02:40]} 7. Bd3 {[%clk 0:02:45]}  dxc4 {[%clk 0:02:37]} 8. Bxc4 {[%clk 0:02:45]}  Bd6 {[%clk 0:02:36]} 9. O-O {[%clk 0:02:42]}  e5 {[%clk 0:02:36]} 10. d5 {[%clk 0:02:24]}  Ne7 {[%clk 0:02:35]} 11. e4 {[%clk 0:02:19]}  a6 {[%clk 0:02:31]} 12. Bd3 {[%clk 0:02:07]}  Ng6 {[%clk 0:02:29]} 13. Qc2 {[%clk 0:01:57]}  Re8 {[%clk 0:02:28]} 14. h3 {[%clk 0:01:49]}  Nf4 {[%clk 0:02:20]} 15. Bxf4 {[%clk 0:01:47]}  exf4 {[%clk 0:02:21]} 16. Rfe1 {[%clk 0:01:37]}  Nd7 {[%clk 0:02:20]} 17. e5 {[%clk 0:01:33]}  Nxe5 {[%clk 0:02:19]} 18. Bxh7+ {[%clk 0:01:29]}  Kh8 {[%clk 0:02:15]} 19. Nxe5 {[%clk 0:01:22]}  Bxe5 {[%clk 0:02:09]} 20. Bf5 {[%clk 0:01:06]}  Qf6 {[%clk 0:02:00]} 21. Bxc8 {[%clk 0:01:03]}  Raxc8 {[%clk 0:02:01]} 22. Ne4 {[%clk 0:01:03]}  Qg6 {[%clk 0:02:00]} 23. Qb3 {[%clk 0:00:55]}  Bd4 {[%clk 0:01:39]} 24. Qf3 {[%clk 0:00:46]}  f5 {[%clk 0:01:14]} 25. Nc3 {[%clk 0:00:41]}  Qg5 {[%clk 0:01:07]} 26. Re2 {[%clk 0:00:31]}  Rxe2 {[%clk 0:01:04]} 27. Qxe2 {[%clk 0:00:32]}  Rd8 {[%clk 0:00:58]} 28. Re1 {[%clk 0:00:25]}  Rd6 {[%clk 0:00:55]} 29. Qe8+ {[%clk 0:00:19]}  Kh7 {[%clk 0:00:55]} 30. Re6 {[%clk 0:00:18]}  Rd8 {[%clk 0:00:33]} 31. Qf7 {[%clk 0:00:12]}  f3 {[%clk 0:00:28]} 32. g4 {[%clk 0:00:10]}  fxg4 {[%clk 0:00:23]} 33. Ne4 {[%clk 0:00:07]}  Qh4 {[%clk 0:00:15]} 34. Qg6+ {[%clk 0:00:04]}  Kh8 {[%clk 0:00:12]} 35. Qxg4 {[%clk 0:00:01]}  Qxg4+ {[%clk 0:00:11]} 36. hxg4 {[%clk 0:00:01]}  Rxd5 {[%clk 0:00:12]} 0-1


[Site "https://www.chess.com"]

[Event "Titled Tuesday Blitz December 06 Early 2022"]
[White "Kvaloy, Aksel Bu"]
[Black "Liu, Casper"]
[WhiteFideId "1528815"]
[BlackFideId "1454153"]
[WhiteElo "2184"]
[BlackElo "2217"]
[Result "1-0"]
[Round "03"]
[TimeControl "180+1"]
[Date "2022.12.07"]
[WhiteClock "0:00:20"]
[BlackClock "0:00:47"]

1. e4 {[%clk 0:03:00]}  c5 {[%clk 0:02:55]} 2. Nf3 {[%clk 0:02:58]}  d6 {[%clk 0:02:55]} 3. d4 {[%clk 0:02:58]}  cxd4 {[%clk 0:02:55]} 4. Nxd4 {[%clk 0:02:59]}  Nf6 {[%clk 0:02:56]} 5. Nc3 {[%clk 0:03:00]}  a6 {[%clk 0:02:56]} 6. h4 {[%clk 0:03:00]}  e5 {[%clk 0:02:55]} 7. Nb3 {[%clk 0:02:55]}  Be6 {[%clk 0:02:55]} 8. f4 {[%clk 0:02:55]}  Nbd7 {[%clk 0:02:53]} 9. f5 {[%clk 0:02:54]}  Bxb3 {[%clk 0:02:53]} 10. axb3 {[%clk 0:02:53]}  Nc5 {[%clk 0:02:54]} 11. Qf3 {[%clk 0:02:51]}  Be7 {[%clk 0:02:53]} 12. g4 {[%clk 0:02:48]}  h6 {[%clk 0:02:48]} 13. g5 {[%clk 0:02:46]}  hxg5 {[%clk 0:02:46]} 14. hxg5 {[%clk 0:02:47]}  Rxh1 {[%clk 0:02:47]} 15. Qxh1 {[%clk 0:02:47]}  Nfd7 {[%clk 0:02:45]} 16. b4 {[%clk 0:02:45]}  Bxg5 {[%clk 0:02:44]} 17. Bxg5 {[%clk 0:02:32]}  Qxg5 {[%clk 0:02:45]} 18. bxc5 {[%clk 0:02:32]}  O-O-O {[%clk 0:02:44]} 19. c6 {[%clk 0:02:26]}  Qg3+ {[%clk 0:02:43]} 20. Kd1 {[%clk 0:02:25]}  Nf6 {[%clk 0:02:36]} 21. cxb7+ {[%clk 0:02:24]}  Kb8 {[%clk 0:02:33]} 22. Rxa6 {[%clk 0:02:16]}  Kxb7 {[%clk 0:02:32]} 23. Kc1 {[%clk 0:02:00]}  d5 {[%clk 0:02:29]} 24. exd5 {[%clk 0:01:57]}  e4 {[%clk 0:02:24]} 25. b3 {[%clk 0:01:48]}  Qxc3 {[%clk 0:02:20]} 26. Qg1 {[%clk 0:01:29]}  e3 {[%clk 0:02:16]} 27. d6 {[%clk 0:01:27]}  Ne4 {[%clk 0:01:58]} 28. Qg2 {[%clk 0:01:06]}  Qe1+ {[%clk 0:01:26]} 29. Kb2 {[%clk 0:01:05]}  Qc3+ {[%clk 0:01:26]} 30. Kb1 {[%clk 0:01:05]}  Qd4 {[%clk 0:01:06]} 31. Ra4 {[%clk 0:00:54]}  Qd1+ {[%clk 0:00:56]} 32. Kb2 {[%clk 0:00:46]}  Rxd6 {[%clk 0:00:46]} 33. Qxe4+ {[%clk 0:00:42]}  Kb8 {[%clk 0:00:46]} 34. Qa8+ {[%clk 0:00:17]}  Kc7 {[%clk 0:00:46]} 35. Ra7+ {[%clk 0:00:18]}  Kb6 {[%clk 0:00:47]} 36. Qb7+ {[%clk 0:00:18]}  Kc5 {[%clk 0:00:47]} 37. Ra5+ {[%clk 0:00:19]}  Kd4 {[%clk 0:00:47]} 38. Qb4# {[%clk 0:00:20]} 1-0


[Site "https://www.chess.com"]

[Event "Titled Tuesday Blitz December 06 Early 2022"]
[White "Makhmudov, Shukhrat"]
[Black "Turzo, Attila"]
[WhiteFideId "14200775"]
[BlackFideId "704954"]
[WhiteElo "2135"]
[BlackElo "2487"]
[Result "0-1"]
[Round "03"]
[TimeControl "180+1"]
[Date "2022.12.07"]
[WhiteClock "0:00:16"]
[BlackClock "0:01:27"]

1. e4 {[%clk 0:03:00]}  e5 {[%clk 0:02:59]} 2. Nf3 {[%clk 0:03:00]}  Nc6 {[%clk 0:02:59]} 3. Bb5 {[%clk 0:03:00]}  a6 {[%clk 0:03:00]} 4. Ba4 {[%clk 0:03:00]}  Nf6 {[%clk 0:03:00]} 5. O-O {[%clk 0:03:00]}  Be7 {[%clk 0:03:00]} 6. Bxc6 {[%clk 0:02:59]}  dxc6 {[%clk 0:03:01]} 7. d3 {[%clk 0:03:00]}  Nd7 {[%clk 0:03:00]} 8. Nbd2 {[%clk 0:02:59]}  O-O {[%clk 0:02:58]} 9. Nc4 {[%clk 0:02:59]}  Bd6 {[%clk 0:02:58]} 10. b3 {[%clk 0:02:53]}  c5 {[%clk 0:02:56]} 11. Bb2 {[%clk 0:02:52]}  f6 {[%clk 0:02:56]} 12. Nh4 {[%clk 0:02:48]}  g6 {[%clk 0:02:51]} 13. Nf3 {[%clk 0:02:25]}  Rf7 {[%clk 0:02:51]} 14. Ne3 {[%clk 0:02:19]}  Nf8 {[%clk 0:02:50]} 15. Nd5 {[%clk 0:02:20]}  c6 {[%clk 0:02:47]} 16. Ne3 {[%clk 0:02:19]}  Ne6 {[%clk 0:02:42]} 17. a4 {[%clk 0:02:18]}  Nd4 {[%clk 0:02:32]} 18. Nd2 {[%clk 0:02:16]}  a5 {[%clk 0:02:27]} 19. Ndc4 {[%clk 0:02:15]}  Bc7 {[%clk 0:02:23]} 20. Ba3 {[%clk 0:02:14]}  b6 {[%clk 0:02:23]} 21. Rb1 {[%clk 0:02:06]}  Kg7 {[%clk 0:02:21]} 22. h3 {[%clk 0:02:05]}  Ne6 {[%clk 0:02:18]} 23. g3 {[%clk 0:02:02]}  Nd4 {[%clk 0:02:09]} 24. Kg2 {[%clk 0:02:00]}  f5 {[%clk 0:02:09]} 25. exf5 {[%clk 0:01:35]}  gxf5 {[%clk 0:02:07]} 26. f4 {[%clk 0:01:33]}  exf4 {[%clk 0:02:03]} 27. gxf4 {[%clk 0:01:33]}  Qh4 {[%clk 0:02:03]} 28. Qe1 {[%clk 0:01:02]}  Qh5 {[%clk 0:01:53]} 29. Bb2 {[%clk 0:00:58]}  Rf6 {[%clk 0:01:39]} 30. Kh2 {[%clk 0:00:47]}  Rg6 {[%clk 0:01:36]} 31. Rg1 {[%clk 0:00:40]}  Kf7 {[%clk 0:01:30]} 32. Ne5+ {[%clk 0:00:17]}  Bxe5 {[%clk 0:01:28]} 33. Bxd4 {[%clk 0:00:16]}  Bxf4+ {[%clk 0:01:27]} 0-1


[Site "https://www.chess.com"]

[Event "Titled Tuesday Blitz December 06 Early 2022"]
[White "Manukyan, Sargis A."]
[Black "Ciuffoletti, Paolo"]
[WhiteFideId "13303970"]
[BlackFideId "807630"]
[WhiteElo "2187"]
[BlackElo "2143"]
[Result "1-0"]
[Round "03"]
[TimeControl "180+1"]
[Date "2022.12.07"]
[WhiteClock "0:00:36"]
[BlackClock "0:00:07"]

1. Nf3 {[%clk 0:02:59]}  d5 {[%clk 0:02:55]} 2. c4 {[%clk 0:02:58]}  c6 {[%clk 0:02:53]} 3. e3 {[%clk 0:02:50]}  Nf6 {[%clk 0:02:52]} 4. Nc3 {[%clk 0:02:50]}  g6 {[%clk 0:02:50]} 5. d4 {[%clk 0:02:48]}  Bg7 {[%clk 0:02:46]} 6. Bd3 {[%clk 0:02:47]}  Bg4 {[%clk 0:02:40]} 7. Qb3 {[%clk 0:02:43]}  Qb6 {[%clk 0:02:25]} 8. c5 {[%clk 0:02:38]}  Qxb3 {[%clk 0:02:23]} 9. axb3 {[%clk 0:02:38]}  Bxf3 {[%clk 0:02:21]} 10. gxf3 {[%clk 0:02:37]}  Nbd7 {[%clk 0:02:20]} 11. b4 {[%clk 0:02:36]}  e5 {[%clk 0:02:19]} 12. b5 {[%clk 0:02:31]}  Nh5 {[%clk 0:02:02]} 13. Ra4 {[%clk 0:01:55]}  O-O {[%clk 0:01:47]} 14. Kd1 {[%clk 0:01:27]}  exd4 {[%clk 0:01:20]} 15. exd4 {[%clk 0:01:27]}  cxb5 {[%clk 0:01:18]} 16. Nxb5 {[%clk 0:01:20]}  a6 {[%clk 0:01:08]} 17. Nc7 {[%clk 0:01:10]}  b5 {[%clk 0:00:51]} 18. Bxb5 {[%clk 0:00:57]}  axb5 {[%clk 0:00:29]} 19. Rxa8 {[%clk 0:00:56]}  Rxa8 {[%clk 0:00:29]} 20. Nxa8 {[%clk 0:00:57]}  Bxd4 {[%clk 0:00:29]} 21. c6 {[%clk 0:00:56]}  Nb6 {[%clk 0:00:19]} 22. Re1 {[%clk 0:00:43]}  Kf8 {[%clk 0:00:14]} 23. Bh6+ {[%clk 0:00:43]}  Ng7 {[%clk 0:00:11]} 24. Nc7 {[%clk 0:00:36]}  f5 {[%clk 0:00:07]} 25. Ne6+ {[%clk 0:00:36]} 1-0


[Site "https://www.chess.com"]

[Event "Titled Tuesday Blitz December 06 Early 2022"]
[White "Matveeva, Olga"]
[Black "Demin, Vladimir"]
[WhiteFideId "24107018"]
[BlackFideId "4167457"]
[WhiteElo "2056"]
[BlackElo "2559"]
[Result "0-1"]
[Round "03"]
[TimeControl "180+1"]
[Date "2022.12.07"]
[WhiteClock "0:00:26"]
[BlackClock "0:01:01"]

1. d4 {[%clk 0:03:00]}  Nf6 {[%clk 0:02:55]} 2. c4 {[%clk 0:03:01]}  e5 {[%clk 0:02:52]} 3. dxe5 {[%clk 0:03:00]}  Ng4 {[%clk 0:02:51]} 4. Nf3 {[%clk 0:03:01]}  Bc5 {[%clk 0:02:50]} 5. e3 {[%clk 0:03:01]}  Nc6 {[%clk 0:02:48]} 6. Be2 {[%clk 0:03:00]}  O-O {[%clk 0:02:41]} 7. O-O {[%clk 0:02:59]}  Ngxe5 {[%clk 0:02:23]} 8. Nxe5 {[%clk 0:03:00]}  Nxe5 {[%clk 0:02:21]} 9. Nc3 {[%clk 0:02:56]}  d6 {[%clk 0:02:21]} 10. b3 {[%clk 0:02:53]}  Bf5 {[%clk 0:02:17]} 11. Bb2 {[%clk 0:02:52]}  Re8 {[%clk 0:02:12]} 12. a3 {[%clk 0:02:50]}  a5 {[%clk 0:02:09]} 13. Nd5 {[%clk 0:02:46]}  c6 {[%clk 0:02:06]} 14. Nf4 {[%clk 0:02:45]}  Be4 {[%clk 0:02:01]} 15. Bd4 {[%clk 0:02:27]}  Qg5 {[%clk 0:01:56]} 16. Bxc5 {[%clk 0:02:22]}  dxc5 {[%clk 0:01:47]} 17. f3 {[%clk 0:02:13]}  Rad8 {[%clk 0:01:44]} 18. Qc1 {[%clk 0:02:12]}  Bd3 {[%clk 0:01:39]} 19. Bxd3 {[%clk 0:01:59]}  Nxd3 {[%clk 0:01:40]} 20. Nxd3 {[%clk 0:01:34]}  Rxd3 {[%clk 0:01:41]} 21. e4 {[%clk 0:01:15]}  Qxc1 {[%clk 0:01:39]} 22. Rfxc1 {[%clk 0:01:16]}  Rxb3 {[%clk 0:01:39]} 23. Rab1 {[%clk 0:01:13]}  Rxb1 {[%clk 0:01:33]} 24. Rxb1 {[%clk 0:01:13]}  Re7 {[%clk 0:01:33]} 25. Kf2 {[%clk 0:01:12]}  Rd7 {[%clk 0:01:33]} 26. Ke3 {[%clk 0:01:11]}  f6 {[%clk 0:01:33]} 27. h4 {[%clk 0:01:07]}  Kf7 {[%clk 0:01:33]} 28. h5 {[%clk 0:01:06]}  Ke7 {[%clk 0:01:33]} 29. g4 {[%clk 0:01:05]}  Kd8 {[%clk 0:01:32]} 30. Rb2 {[%clk 0:00:59]}  Kc7 {[%clk 0:01:32]} 31. Rb1 {[%clk 0:00:59]}  Rd4 {[%clk 0:01:32]} 32. Rc1 {[%clk 0:01:00]}  a4 {[%clk 0:01:28]} 33. f4 {[%clk 0:00:57]}  Kd6 {[%clk 0:01:28]} 34. Rc2 {[%clk 0:00:54]}  b5 {[%clk 0:01:28]} 35. Rc1 {[%clk 0:00:45]}  bxc4 {[%clk 0:01:19]} 36. Rc3 {[%clk 0:00:38]}  Ke6 {[%clk 0:01:13]} 37. Rc1 {[%clk 0:00:35]}  g6 {[%clk 0:01:13]} 38. hxg6 {[%clk 0:00:34]}  hxg6 {[%clk 0:01:14]} 39. Rc3 {[%clk 0:00:34]}  f5 {[%clk 0:01:11]} 40. gxf5+ {[%clk 0:00:34]}  gxf5 {[%clk 0:01:11]} 41. e5 {[%clk 0:00:30]}  Kd5 {[%clk 0:01:10]} 42. Rc1 {[%clk 0:00:29]}  Re4+ {[%clk 0:01:10]} 43. Kf3 {[%clk 0:00:29]}  Kd4 {[%clk 0:01:09]} 44. Rd1+ {[%clk 0:00:28]}  Kc3 {[%clk 0:01:08]} 45. Rd6 {[%clk 0:00:28]}  Kb3 {[%clk 0:01:08]} 46. Rxc6 {[%clk 0:00:29]}  Kxa3 {[%clk 0:01:06]} 47. Rxc5 {[%clk 0:00:29]}  Kb3 {[%clk 0:01:05]} 48. e6 {[%clk 0:00:26]}  Rxe6 {[%clk 0:01:05]} 49. Rxf5 {[%clk 0:00:26]}  a3 {[%clk 0:01:05]} 50. Ra5 {[%clk 0:00:26]}  a2 {[%clk 0:01:04]} 51. f5 {[%clk 0:00:26]}  Re5 {[%clk 0:01:01]} 0-1


[Site "https://www.chess.com"]

[Event "Titled Tuesday Blitz December 06 Early 2022"]
[White "Mazurkiewicz, Michal"]
[Black "Levine, David"]
[WhiteFideId "1124943"]
[BlackFideId "2011611"]
[WhiteElo "2081"]
[BlackElo "2185"]
[Result "1-0"]
[Round "03"]
[TimeControl "180+1"]
[Date "2022.12.07"]
[WhiteClock "0:00:38"]
[BlackClock "0:00:04"]

1. e4 {[%clk 0:03:00]}  e5 {[%clk 0:02:59]} 2. Nf3 {[%clk 0:03:00]}  Nc6 {[%clk 0:02:59]} 3. d3 {[%clk 0:03:01]}  Nf6 {[%clk 0:02:57]} 4. g3 {[%clk 0:03:01]}  Bc5 {[%clk 0:02:56]} 5. Bg2 {[%clk 0:03:00]}  d6 {[%clk 0:02:55]} 6. O-O {[%clk 0:03:00]}  O-O {[%clk 0:02:54]} 7. a3 {[%clk 0:03:01]}  a6 {[%clk 0:02:53]} 8. b4 {[%clk 0:02:59]}  Ba7 {[%clk 0:02:51]} 9. Bb2 {[%clk 0:02:59]}  Re8 {[%clk 0:02:45]} 10. Nbd2 {[%clk 0:02:58]}  d5 {[%clk 0:02:41]} 11. exd5 {[%clk 0:02:55]}  Nxd5 {[%clk 0:02:41]} 12. Re1 {[%clk 0:02:54]}  f6 {[%clk 0:02:39]} 13. Ne4 {[%clk 0:02:47]}  Bg4 {[%clk 0:02:32]} 14. h3 {[%clk 0:02:46]}  Bh5 {[%clk 0:02:32]} 15. g4 {[%clk 0:02:43]}  Bf7 {[%clk 0:02:30]} 16. c4 {[%clk 0:02:43]}  Nf4 {[%clk 0:02:24]} 17. Bf1 {[%clk 0:02:42]}  Nd4 {[%clk 0:02:18]} 18. c5 {[%clk 0:02:34]}  Bb3 {[%clk 0:01:46]} 19. Nxd4 {[%clk 0:01:13]}  Bxd1 {[%clk 0:01:45]} 20. Raxd1 {[%clk 0:01:09]}  exd4 {[%clk 0:01:42]} 21. Bc1 {[%clk 0:01:09]}  Ne6 {[%clk 0:01:37]} 22. Re2 {[%clk 0:01:07]}  Qd7 {[%clk 0:01:19]} 23. Rde1 {[%clk 0:01:05]}  Rad8 {[%clk 0:01:10]} 24. Bg2 {[%clk 0:01:02]}  Bb8 {[%clk 0:01:06]} 25. c6 {[%clk 0:00:51]}  bxc6 {[%clk 0:01:05]} 26. f4 {[%clk 0:00:51]}  Ba7 {[%clk 0:00:41]} 27. f5 {[%clk 0:00:51]}  Nf8 {[%clk 0:00:38]} 28. Bf4 {[%clk 0:00:50]}  c5 {[%clk 0:00:32]} 29. bxc5 {[%clk 0:00:49]}  Qb5 {[%clk 0:00:28]} 30. c6 {[%clk 0:00:47]}  Qxc6 {[%clk 0:00:24]} 31. Nxf6+ {[%clk 0:00:47]}  Qxf6 {[%clk 0:00:24]} 32. Rxe8 {[%clk 0:00:47]}  Rxe8 {[%clk 0:00:24]} 33. Rxe8 {[%clk 0:00:47]}  Kf7 {[%clk 0:00:22]} 34. Re2 {[%clk 0:00:39]}  g5 {[%clk 0:00:11]} 35. Bd5+ {[%clk 0:00:38]}  Kg7 {[%clk 0:00:04]} 36. Be5 {[%clk 0:00:38]} 1-0


[Site "https://www.chess.com"]

[Event "Titled Tuesday Blitz December 06 Early 2022"]
[White "Mkrtchian, Lilit"]
[Black "Simonovic, Miroslav"]
[WhiteFideId "13300601"]
[BlackFideId "919152"]
[WhiteElo "2316"]
[BlackElo "2057"]
[Result "1-0"]
[Round "03"]
[TimeControl "180+1"]
[Date "2022.12.07"]
[WhiteClock "0:00:08"]
[BlackClock "0:00:01"]

1. Nf3 {[%clk 0:03:00]}  c5 {[%clk 0:03:00]} 2. g3 {[%clk 0:02:59]}  Nc6 {[%clk 0:03:00]} 3. Bg2 {[%clk 0:02:56]}  e5 {[%clk 0:03:01]} 4. c4 {[%clk 0:02:56]}  g6 {[%clk 0:03:01]} 5. Nc3 {[%clk 0:02:53]}  Bg7 {[%clk 0:03:02]} 6. a3 {[%clk 0:02:53]}  Nge7 {[%clk 0:03:02]} 7. Rb1 {[%clk 0:02:49]}  a5 {[%clk 0:03:01]} 8. O-O {[%clk 0:02:45]}  O-O {[%clk 0:03:00]} 9. Ne1 {[%clk 0:02:44]}  d6 {[%clk 0:02:59]} 10. Nc2 {[%clk 0:02:44]}  Be6 {[%clk 0:02:56]} 11. Ne3 {[%clk 0:02:39]}  f5 {[%clk 0:02:56]} 12. Ned5 {[%clk 0:02:37]}  e4 {[%clk 0:02:52]} 13. d3 {[%clk 0:02:33]}  exd3 {[%clk 0:02:26]} 14. Qxd3 {[%clk 0:02:27]}  Ne5 {[%clk 0:02:23]} 15. Qc2 {[%clk 0:02:27]}  Nxc4 {[%clk 0:02:17]} 16. Bg5 {[%clk 0:02:16]}  Nxd5 {[%clk 0:00:51]} 17. Bxd5 {[%clk 0:02:01]}  Qxg5 {[%clk 0:00:43]} 18. Bxe6+ {[%clk 0:02:01]}  Kh8 {[%clk 0:00:43]} 19. Bxc4 {[%clk 0:02:01]}  f4 {[%clk 0:00:38]} 20. a4 {[%clk 0:01:21]}  fxg3 {[%clk 0:00:35]} 21. hxg3 {[%clk 0:01:20]}  Bd4 {[%clk 0:00:31]} 22. Kg2 {[%clk 0:01:20]}  Rf5 {[%clk 0:00:08]} 23. e3 {[%clk 0:01:18]}  Bg7 {[%clk 0:00:07]} 24. Rbd1 {[%clk 0:01:07]}  Raf8 {[%clk 0:00:08]} 25. Nd5 {[%clk 0:00:57]}  Qg4 {[%clk 0:00:06]} 26. Qe2 {[%clk 0:00:52]}  Qe4+ {[%clk 0:00:05]} 27. f3 {[%clk 0:00:45]}  Qe8 {[%clk 0:00:05]} 28. e4 {[%clk 0:00:32]}  Rh5 {[%clk 0:00:03]} 29. Rh1 {[%clk 0:00:31]}  Rxh1 {[%clk 0:00:03]} 30. Rxh1 {[%clk 0:00:31]}  Qxa4 {[%clk 0:00:04]} 31. Nf4 {[%clk 0:00:27]}  Rf6 {[%clk 0:00:02]} 32. Qd3 {[%clk 0:00:25]}  b5 {[%clk 0:00:02]} 33. Bd5 {[%clk 0:00:18]}  c4 {[%clk 0:00:01]} 34. Qd2 {[%clk 0:00:15]}  Qb4 {[%clk 0:00:01]} 35. Qxb4 {[%clk 0:00:15]}  axb4 {[%clk 0:00:02]} 36. Ra1 {[%clk 0:00:14]}  h5 {[%clk 0:00:01]} 37. Ra8+ {[%clk 0:00:14]}  Kh7 {[%clk 0:00:01]} 38. Rb8 {[%clk 0:00:14]}  c3 {[%clk 0:00:01]} 39. bxc3 {[%clk 0:00:13]}  bxc3 {[%clk 0:00:02]} 40. Rxb5 {[%clk 0:00:12]}  h4 {[%clk 0:00:02]} 41. Rb7 {[%clk 0:00:10]}  hxg3 {[%clk 0:00:02]} 42. Rc7 {[%clk 0:00:09]}  Rxf4 {[%clk 0:00:01]} 43. Rc4 {[%clk 0:00:08]} 1-0


[Site "https://www.chess.com"]